Cogmind - Beta 13 @@@ ROGUE MODE // 2024.04.07 @ 15:01:47 Player: Eusmilis Result: Destroyed by YI-UF0 with YI-UF0's Doublenader Performance ------------- Evolutions (1) 500 Regions Visited (3) 600 Robots Destroyed (26) 130 Value Destroyed (496) 496 Prototype IDs (3) 60 Alien Tech Used (0) 0 Bonus (0) 0 TOTAL SCORE: 1786 Bonus ------- None Cogmind --------- Core Integrity 0/400 Matter 31/300 Energy 100/100 System Corruption 0% Temperature Cool (0) Movement Core (150) Ox2 Location -9/Mines Parts ------- > --- POWER (1) -------- (None) > --- PROPULSION (2) --- (None) > --- UTILITY (4) ------ Small Storage Unit Improved Terrain Scanner > --- WEAPON (2) ------- Autogun > --- INVENTORY (8) ---- Light Ion Engine Aluminum Leg Beam Cannon Heavy Assault Rifle Autogun Rocket Launcher Mini Grenade Launcher Mining Laser Peak State ------------ > --- POWER ------------ Light Nuclear Core > --- PROPULSION ------- Aluminum Leg Improved Aluminum Leg > --- UTILITY ---------- Small Storage Unit High-capacity Matter Pod Sensor Array Improved Terrain Scanner > --- WEAPON ----------- Autogun Autogun > --- INVENTORY -------- Light Ion Engine Aluminum Leg Beam Cannon Heavy Assault Rifle Autogun Grenade Launcher Mini Grenade Launcher Mining Laser [Rating: 17] Favorites ----------- Power Ion Engine Engine Ion Engine Power Core Light Nuclear Core Propulsion Aluminum Leg Leg Aluminum Leg Utility Small Storage Unit Device Improved Terrain Scanner Storage Small Storage Unit Weapon Assault Rifle Ballistic Gun Assault Rifle Launcher Grenade Launcher Build | -11 -10 -9 -9 ------- Run | Yrd Mat Mat Min Slots Evolved 2 | . . 2 . Power . | . . . . Propulsion . | . . . . Utility 2 | . . 2 . Weapon . | . . . . Parts Attached 30 | 7 8 15 . Power 5 | 1 2 2 . Engine 3 | 1 1 1 . Core 2 | . 1 1 . Reactor . | . . . . Propulsion 9 | 2 3 4 . Treads . | . . . . Leg 9 | 2 3 4 . Wheel . | . . . . Hover . | . . . . Flight . | . . . . Utility 5 | 2 1 2 . Device 3 | 1 1 1 . Storage 2 | 1 . 1 . Processor . | . . . . Hackware . | . . . . Protection . | . . . . Artifact . | . . . . Weapon 11 | 2 2 7 . Energy Gun . | . . . . Energy Cannon . | . . . . Ballistic Gun 7 | 2 1 4 . Ballistic Cannon . | . . . . Launcher 4 | . 1 3 . Special Weapon . | . . . . Impact Weapon . | . . . . Slashing Weapon . | . . . . Piercing Weapon . | . . . . Special Melee Weapon . | . . . . Unidentified Prototypes . | . . . . Parts Lost 11 | . 2 4 5 Power 3 | . 1 1 1 Propulsion 3 | . . 2 1 Utility 3 | . 1 . 2 Weapon 2 | . . 1 1 Highest Loss Streak 5 | . 1 2 5 To Critical Strikes . | . . . . Average Slot Usage (%) 93 | . 93 98 80 Engine 7 | . 10 5 . Core 4 | . 2 4 9 Leg 22 | . 28 21 9 Device 15 | . 8 22 21 Storage 18 | . 14 22 19 Ballistic Gun 23 | . 26 20 20 Launcher 1 | . 1 1 . Naked Turns . | . . . . Heaviest Build 22 | 15 15 22 22 Greatest Support 23 | 20 20 23 10 Greatest Overweight (x) 4 | 1 . 2 4 Average Overweight (x) . | . . . 1 Largest Inventory Capacity 8 | 8 8 8 8 Average Capacity 7 | 7 8 8 8 Most Carried 8 | 6 8 8 8 Average Carried 7 | 3 7 7 8 Final Capacity 8 | 8 8 8 8 Final Carried 8 | 6 7 8 8 Class Distribution -------------------- 95% | Mutant 4% | Scavenger-Mutant Dominant Class ---------------- Mutant | -10/Materials Mutant | -9/Materials Mutant | -9/Mines Resources | -11 -10 -9 -9 ----------- Run | Yrd Mat Mat Min Matter Collected 688 | 324 172 192 . Remotely . | . . . . Salvage Created 560 | 151 191 218 . Parts 49 | 14 17 18 . Haulers Intercepted . | . . . . Recyclers Shooed . | . . . . Parts Field Recycled . | . . . . Retrieved Matter . | . . . . Parts Self-Destructed . | . . . . Prevented . | . . . . Kills | -11 -10 -9 -9 ------- Run | Yrd Mat Mat Min Combat Hostiles Destroyed 16 | . 7 9 . Guns 10 | . 6 4 . AOE 6 | . 1 5 . Classes Destroyed 8 | 2 3 3 . Worker 2 | . 1 1 . Builder 1 | . . 1 . Tunneler 4 | 4 . . . Recycler 1 | 1 . . . Watcher 2 | . . 2 . Swarmer 7 | . 3 4 . Grunt 8 | . 4 4 . Sentry 1 | . . 1 . Best Kill Streak 6 | 5 4 6 . Combat Bots Only 6 | . 3 6 . Max Kills in Single Turn 3 | 1 1 3 . Gunslinging 1 | . . 1 . Exploded 2 | . 1 2 . Melee . | . . . . Uniques/NPCs Destroyed . | . . . . Combat | -11 -10 -9 -9 -------- Run | Yrd Mat Mat Min Hostile Shots Fired 154 | . 62 74 18 Missed 46 | . 20 21 5 Damage Taken 1680 | . 449 706 525 Core 522 | . 110 107 305 Absorbed by Shields . | . . . . Core Remaining (%) 78 | 100 56 . . Volleys Fired 63 | 9 28 26 . Largest 2 | 2 2 2 . Hottest 53 | 40 50 53 . Shots Fired 125 | 18 56 51 . Gun 111 | 18 54 39 . Cannon . | . . . . Launcher 14 | . 2 12 . Special . | . . . . Kinetic 111 | 18 54 39 . Thermal . | . . . . Explosive 14 | . 2 12 . Electromagnetic . | . . . . Robot Hit Streak 9 | 9 8 6 . Robot Miss Streak 5 | 1 5 4 . Penetration Max . | . . . . Secondary Targets 2 | . . 2 . Max Gunslinging Chain 1 | . . 1 . Shots Hit Robots 65 | 14 34 17 . Core Hits 39 | 6 12 21 . Critical Kills . | . . . . Critical Parts Destroyed . | . . . . Critical Strikes . | . . . . Melee Attacks . | . . . . Impact . | . . . . Slashing . | . . . . Piercing . | . . . . Sneak Attacks . | . . . . Combat Hostiles . | . . . . Follow-up Attacks . | . . . . Damage Inflicted 1587 | 173 597 817 . Guns 933 | 173 449 311 . Cannons . | . . . . Explosions 654 | . 148 506 . Melee . | . . . . Ramming . | . . . . Kinetic 933 | 173 449 311 . Thermal . | . . . . Explosive 654 | . 148 506 . Electromagnetic . | . . . . Impact . | . . . . Slashing . | . . . . Piercing . | . . . . Highest Corruption . | . . . . Average Corruption . | . . . . Corruption Purged . | . . . . Corruption Blocked . | . . . . Overload Shots . | . . . . Overflow Damage 38 | . 38 . . Projectiles . | . . . . Explosions 38 | . 38 . . Melee . | . . . . Knockbacks . | . . . . Impact . | . . . . Kinetic . | . . . . Secondary . | . . . . Self-Inflicted Damage 117 | . 40 77 . Shots 4 | . 1 3 . Rammed . | . . . . Targets Rammed . | . . . . Kicked . | . . . . Crushed . | . . . . Highest Temperature 33 | . 2 33 . Average Temperature 9 | . 2 10 . Received Heat Transfer 357 | . 126 231 . Siege Activations . | . . . . Robots Corrupted . | . . . . Combat Hostiles . | . . . . Parts Fried . | . . . . Impact Corruptions . | . . . . Robots Melted . | . . . . Combat Hostiles . | . . . . Parts Melted . | . . . . Heat Transferred . | . . . . Parts Sabotaged . | . . . . Parts Stolen . | . . . . Parts Stripped . | . . . . Power Chain Reactions . | . . . . Alert | -11 -10 -9 -9 ------- Run | Yrd Mat Mat Min Peak Influence 378 | 25 272 378 66 Initial 66 | . 16 39 66 Average 101 | 11 86 154 61 Maximum Alert Level 1 | . 1 1 . Low Security (%) 80 | 100 85 64 100 Level 1 19 | . 14 35 . Level 2 . | . . . . Level 3 . | . . . . Level 4 . | . . . . Level 5 . | . . . . High Security . | . . . . Max Security . | . . . . Squads Dispatched 2 | . 2 . . Investigation . | . . . . Extermination . | . . . . Reinforcement 2 | . 2 . . Assault . | . . . . Garrison . | . . . . Intercept . | . . . . Searches Triggered . | . . . . Construction Impeded . | . . . . Haulers Reinforced . | . . . . Active Scanning Responses . | . . . . Cargo Convoy Interrupts . | . . . . Stealth | -11 -10 -9 -9 --------- Run | Yrd Mat Mat Min Distress Signals 2 | . . 2 . Communications Jammed . | . . . . Distress Signals . | . . . . Times Spotted 30 | . 14 15 1 Peak Tracking Total 7 | . 3 7 1 Tactical Retreats 2 | . . 2 . Traps | -11 -10 -9 -9 ------- Run | Yrd Mat Mat Min Traps Triggered . | . . . . Indirectly . | . . . . Trap Hack Attempts . | . . . . Triggered . | . . . . Disarmed . | . . . . Reprogrammed . | . . . . Reused . | . . . . Traps Extracted . | . . . . Installed . | . . . . Triggered . | . . . . Machines | -11 -10 -9 -9 ---------- Run | Yrd Mat Mat Min Machines Disabled 1 | . 1 . . Max in Single Turn 1 | . 1 . . Machines Repaired . | . . . . Machines Dismantled . | . . . . Machines Sabotaged . | . . . . Overloaded Fab Kills . | . . . . Hacking | -11 -10 -9 -9 --------- Run | Yrd Mat Mat Min Machines Accessed 6 | . 5 1 . Terminals 6 | . 5 1 . Fabricators . | . . . . Repair Stations . | . . . . Recycling Units . | . . . . Scanalyzers . | . . . . Garrison Access . | . . . . Total Hacks 16 | . 15 1 . Successful 10 | . 9 1 . Failed 6 | . 6 . . Catastrophic 1 | . 1 . . Database Lockouts . | . . . . Manual . | . . . . Terminals 16 | . 15 1 . Fabricators . | . . . . Repair Stations . | . . . . Recycling Units . | . . . . Scanalyzers . | . . . . Garrison Access . | . . . . Terminal Hacks 10 | . 9 1 . Record 3 | . 3 . . Prototype ID Bank 2 | . 2 . . Emergency Access Points 2 | . 2 . . Locate Traps 1 | . . 1 . Transport Status 1 | . 1 . . Zone Layout 1 | . 1 . . Fabricator Hacks . | . . . . Repair Station Hacks . | . . . . Recycling Unit Hacks . | . . . . Scanalyzer . | . . . . Garrison Access Hacks . | . . . . Unauthorized Hacks . | . . . . Terminals . | . . . . Fabricators . | . . . . Repair Stations . | . . . . Recycling Units . | . . . . Scanalyzers . | . . . . Garrison Access . | . . . . Data Cores Recovered . | . . . . Used . | . . . . Hacking Detections 5 | . 4 1 . Full Trace Events 1 | . 1 . . Feedback Events . | . . . . Feedback Blocked . | . . . . Robot Schematics Acquired . | . . . . Robots Built . | . . . . Authchips . | . . . . Time . | . . . . Total Robot Build Rating . | . . . . Part Schematics Acquired . | . . . . Parts Built . | . . . . Authchips . | . . . . Time . | . . . . Total Part Build Rating . | . . . . Parts Repaired . | . . . . Time . | . . . . Parts Recycled . | . . . . Recycled Matter . | . . . . Retrieved Matter . | . . . . Retrieved Components . | . . . . Parts Scanalyzed . | . . . . Part Schematics Acquired . | . . . . Parts Damaged . | . . . . Bothacking | -11 -10 -9 -9 ------------ Run | Yrd Mat Mat Min Used RIF Installer . | . . . . Robots Hacked . | . . . . Non-combat . | . . . . Combat . | . . . . Robot Hacks Applied . | . . . . Relay Couplers Released . | . . . . Fabnet Peak Effective % . | . . . . Robots Rewired . | . . . . Allies Hacked . | . . . . Hacks Repelled . | . . . . Allies | -11 -10 -9 -9 -------- Run | Yrd Mat Mat Min Total Allies . | . . . . Largest Group . | . . . . Highest-Rated Group . | . . . . Highest-Rated Ally . | . . . . Total Orders . | . . . . Ally Attacks . | . . . . Total Damage . | . . . . Kills . | . . . . Allies Corrupted . | . . . . Allies Melted . | . . . . Intel | -11 -10 -9 -9 ------- Run | Yrd Mat Mat Min Robot Analysis Total . | . . . . Derelict Logs Recovered . | . . . . Drone Launches . | . . . . Drone Recoveries . | . . . . Exploration | -11 -10 -9 -9 ------------- Run | Yrd Mat Mat Min Turns Passed 1199 | 113 490 452 144 Spaces Moved 679 | 63 308 249 59 Core 17 | 10 . . 7 Treads . | . . . . Legs 662 | 53 308 249 52 Wheels . | . . . . Hover . | . . . . Flight . | . . . . Fastest Speed 50 | 50 120 120 150 Average Speed 138 | 109 120 142 244 Slowest Speed 260 | 120 120 260 260 Overloaded Moves . | . . . . Propulsion Burnouts . | . . . . Robots Hopped . | . . . . Cave-ins Triggered . | . . . . Exploration Rate (%) 27 | 4 58 22 27 Regions Visited 3 Branch Regions 1 Pre-discovered Areas . | . . . . Known Exits Taken . | . . . . Unknown Exits Taken 3 | 1 1 1 . Scrap Searched . | . . . . Spaces Dug . | . . . . Terrain Destroyed 91 | . 15 76 . Melee . | . . . . Projectile . | . . . . AOE 91 | . 15 76 . Terrain Rammed . | . . . . Walls Destroyed . | . . . . Machines Disabled . | . . . . Actions | -11 -10 -9 -9 --------- Run | Yrd Mat Mat Min Total 825 | 85 375 306 59 Wait 24 | 1 19 4 . Move 676 | 62 307 248 59 Hop . | . . . . Pick Up 18 | 6 6 6 . Fast Attach 9 | 7 1 1 . Attach 6 | . 2 4 . Detach . | . . . . Swap 15 | . 5 10 . Drop 14 | . 7 7 . Fire 63 | 9 28 26 . Melee . | . . . . Ram . | . . . . Kick . | . . . . Crush . | . . . . Escape Stasis . | . . . . Rewire . | . . . . Trap . | . . . . Miscellaneous . | . . . . Route ------- -11/Scrapyard -10/Materials (discovered 3 exits: *Mat x2 / [*Min]) -9/Materials (discovered 2 exits: [*Min x2]) -9/Mines History --------- Turn | Location | Event 6 | -11/Scrapyard | Discovered new exit (range 15) 114 | -11/Scrapyard | Entered Materials 204 | -10/Materials | Discovered new exit (range 5) 308 | -10/Materials | Build established: Mutant 489 | -10/Materials | Discovered new exit (range 4) 601 | -10/Materials | Discovered new exit (range 4) 604 | -10/Materials | Entered another Materials area 604 | -9/Materials | Evolved 2 slots: Utility x2 1000 | -9/Materials | Discovered new exit (range 16) 1021 | -9/Materials | Discovered new exit (range 16) 1056 | -9/Materials | Entered Mines 1190 | -9/Mines | Core integrity fell below 50% 1199 | -9/Mines | Core integrity fell below 20% 1200 | -9/Mines | Destroyed by YI-UF0 with YI-UF0's Doublenader Last Messages --------------- Critical hit (Burn: +37). LOCATION=UNKNOWN GOAL=ESCAPE K-01 Serf collects debris. R-06 Scavenger collects Terrain Scan Processor. K-01 Serf destroyed. Hcp. Matter Pod destroyed. U-05 Engineer lays Concrete. YI-UF0: "BWOOM!" U-05 Engineer destroyed. YI-UF0: "WHOMP!" R-06 Scavenger destroyed. The unstable cave ceiling collapses. Aluminum Leg destroyed. Autogun destroyed. The unstable cave ceiling collapses. Lgt. Nuclear Core destroyed. The unstable cave ceiling collapses. Sensor Array destroyed. The unstable cave ceiling collapses. Map ----- +----------------------------------------------------+ | ?????????????????????????????? | | ????????????????????????????????# # | | ?????????????????????????????#### ## | | ????????????????????????????? ###? | | ??????????????????????????????#??# ##??# | | ?????????????????????????????????# # ##??? | | ?????????????????????????????#??????## #??? | | ?????????????????????????????????? ??## ##?? | | ?????????????????????????????????????## ###?? | | ???????????????????????????#????????## ##?##? | | ???????????????????????? ???????#????# ##????? | | ???????????????????????? ???#????????# #????#? | | ???????????????????????# ??? #???????# ##?????? | | ??????????????????????? "?" ???????# ###??????? | | ??????????????????????? """ ???????# ##???????? | | ???????????????????????# "?" ??????## #????#???# | | ???????????????????????# ? #???????# #??????#?? | | ???????????????????????# ## #?#?????# #????????? | | ???????????????????????# ## #??##???# #?????#??? | | ???????????????????????# ## ### ###?# #????????? | | ??????????????????????## # ### #????#???? | | ??????????????????????# ! ## #????????? | | ??????????????????##### ! ##???????? | | ??????????????????? #?#??????? | | ???????????????????#??# #?? ?????? | | ????????????????#?????# =@ # #????????? | | ??????????????????????## # #?? ?????? | | ???????????????????????# ##????????? | | ???????????????????????# # ##?????????? | | ???????????????????????# #?#???????? | | ???????????????????????# # ######?????????? | | ??????????????????????# ????????????? | | ?????????????????????# g ### #??????????#? | | ?????????????????????# ###? #???????????? | | ?????????????????????# ## ######?? #????#??????? | | ???????????????????? ?####??????? #????????#??? | | ???????????????????? ###?????#?????? #???????????? | | ??????????????????? #?#????????????? ????????????? | | ???????????????????#??#?????????????#????????????? | | ??????????????????????????????#??????????????????? | | ?????????????????????????????????????????????????? | | ?????????????????????????????????????????????????? | | ?????????????????????????????????????????????????? | | | | | | | | | | | | | | | +----------------------------------------------------+ Best States ------------- Heat Dissipation 28 Energy Generation 14 Energy Capacity 250 Matter Stores 300 Matter Capacity 500 Sight Range 16 Robot Scan Range 14 Terrain Scan Range 16 Terrain Scan Density 10 Evasion (%) 55 Item Schematics ----------------- None Robot Schematics ------------------ None Fabricated ------------ Nothing Alien Tech Used ----------------- None Achievements -------------- Let's See Who's Tougher Challenges ------------ None Game ------ Seed FluxCompactSpear Manual? 0 Play Time 00:17:14 Cumulative 4.9 hours Start 2024.04.07 @ 14:23:56 End 2024.04.07 @ 15:01:47 Sessions 1 Manual Loads 0 Difficulty Rogue Special Mode None Game No. 11 Rogue 11 Adventurer 0 Explorer 0 Win Type - Total 0 Types 0/0/0/0/0/0/0/0/0 Lore% 9 Gallery% 10 Achievement% 10 Wizard Run 0 Options --------- Layout 1 ASCII 0 Keyboard 0 Movement Numpad Keybinds 0 Fullscreen 2 Font 32/SmallcapsGlow Map View 50x35 Zoom Use 0% Tactical HUD 0 Map Filters NONE Filters NONE Steam 0 RUN: e0d10e62-9689-4c9d-a22c-d7a4b6733b81